bitfinex-derivatives/quotes_ETHF0:USTF0_20240905
["timestamp","ask_amount","ask_price","bid_price","bid_amount"]
[1725557992322,3.62768,2382.0,2381.8,0.4199]
[1725557992516,3.2078,2382.0,2381.8,0.4199]
[1725557992720,3.62767,2382.0,2381.9,0.3675]
[1725557993722,3.2078,2382.0,2381.9,0.3675]
[1725557993916,3.62767,2382.0,2381.9,0.3675]
[1725557995516,3.62767,2382.0,2381.9,0.78739]
[1725557995921,3.2078,2382.0,2381.9,0.78739]
[1725557999118,3.2078,2382.0,2381.9,0.3675]
[1725557999119,3.62767,2382.0,2381.9,0.3675]
[1725557999927,3.62767,2382.0,2381.8,0.4199]
[1725558000324,3.2078,2382.0,2381.6,0.3594]
[1725558000520,0.41991,2381.8,2381.7,0.41991]
[1725558000721,0.7979,2381.9,2381.7,0.41991]
[1725558000921,0.378,2381.9,2381.5,0.3896]
[1725558001120,0.41994,2381.6,2381.4,0.41997]
[1725558001336,3.2078,2381.7,2381.3,0.3896]
[1725558001530,3.2078,2381.7,2380.9,1.05015]
[1725558001531,0.42003,2381.2,2380.9,2.9]
[1725558001829,4.25778,2381.4,2380.9,2.9]
[1725558002030,0.42003,2381.1,2380.9,3.32006]
[1725558002229,0.42002,2381.2,2381.0,0.42004]
[1725558002730,0.42002,2381.2,2380.9,0.42006]
[1725558002731,0.42003,2381.2,2380.9,0.42006]
[1725558002934,1.80754,2381.3,2380.8,0.3896]
[1725558003134,0.42006,2381.0,2380.8,0.80968]
[1725558003431,0.42004,2381.1,2380.8,0.80968]
[1725558003624,2.19764,2381.3,2380.8,0.80968]
[1725558003625,0.42005,2381.0,2380.8,0.80968]
[1725558004626,3.2078,2381.1,2380.8,0.3896]
[1725558004826,3.2078,2381.1,2381.0,0.42005]
[1725558005629,3.2078,2381.1,2381.0,4.62005]
[1725558007539,3.5671,2381.6,2381.5,0.41996]
[1725558007724,3.5671,2381.6,2381.4,0.41997]
[1725558007725,3.98705,2381.6,2381.4,0.41997]
[1725558008331,3.98705,2381.6,2381.4,0.78877]
[1725558008538,0.41996,2381.5,2381.4,0.3688]
[1725558008840,0.41999,2381.4,2381.2,0.42001]
[1725558009539,0.42001,2381.3,2381.1,3.32003]
[1725558009725,0.42001,2381.3,2381.1,0.42002]
[1725558009930,0.41999,2381.4,2381.2,0.42001]
[1725558010243,0.41997,2381.5,2381.3,0.41998]
[1725558010532,3.98706,2381.6,2381.4,0.41998]
[1725558011042,0.41996,2381.5,2381.4,0.41998]
[1725558011333,3.98705,2381.6,2381.4,0.41998]
[1725558011833,0.41996,2381.5,2381.4,0.41998]
[1725558012138,3.98706,2381.6,2381.4,0.41998]
[1725558012334,0.41996,2381.5,2381.4,0.41998]
[1725558012636,3.5671,2381.6,2381.4,0.41998]
[1725558012942,0.41996,2381.5,2381.4,0.41997]
[1725558013436,0.41998,2381.4,2381.2,0.42]
[1725558013931,4.61698,2381.6,2381.3,0.42]
[1725558014334,0.41996,2381.5,2381.3,0.42]
[1725558014939,0.41997,2381.5,2381.3,0.42]
[1725558015327,0.41998,2381.4,2381.3,0.42]
[1725558015635,0.42001,2381.3,2381.0,3.2688]
[1725558015940,1.04996,2381.4,2381.0,3.68884]
[1725558016137,0.3611,2381.2,2381.1,0.42003]
[1725558017040,0.3611,2381.2,2381.0,3.2688]
[1725558017041,0.42003,2381.1,2381.0,3.68884]
[1725558017227,0.42003,2381.1,2380.8,2.9]
[1725558017432,0.42007,2380.9,2380.8,0.42007]
[1725558017834,0.42006,2381.0,2380.9,0.42007]
[1725558018036,0.41997,2381.5,2381.4,0.41997]
[1725558018234,0.42,2381.3,2381.2,0.42]
[1725558018438,0.42,2381.3,2381.2,0.8099]
[1725558019150,1.05,2381.3,2381.0,0.42004]
[1725558019343,0.42003,2381.1,2381.0,0.42004]
[1725558020245,0.42,2381.3,2381.2,0.42]
[1725558020742,0.3851,2381.5,2381.0,1.05013]
[1725558021044,0.41998,2381.4,2381.3,0.41999]
[1725558021833,0.3851,2381.5,2381.1,3.95007]
[1725558022037,0.80507,2381.5,2381.4,0.41998]
[1725558022241,0.80506,2381.5,2381.4,0.41998]
[1725558022640,3.2078,2381.7,2381.6,0.41994]
[1725558022841,3.2078,2381.7,2381.6,3.31994]
[1725558023042,0.41985,2382.2,2381.9,0.41987]
[1725558023237,0.41985,2382.2,2382.0,1.16877]
[1725558023648,0.41985,2382.2,2382.0,0.7489]
[1725558024341,0.41986,2382.1,2382.0,0.7489]
[1725558024640,0.41986,2382.1,2381.9,0.41988]
[1725558024944,0.41987,2382.0,2381.8,3.32620981]
[1725558025642,3.2078,2382.0,2381.8,0.00630981]
[1725558025947,3.62768,2382.0,2381.8,0.42621981]
[1725558027149,0.41989,2381.9,2381.8,0.00630981]
[1725558028451,3.62769,2382.0,2381.8,0.42621981]
[1725558028637,0.41989,2381.9,2381.8,0.00630981]
[1725558028840,3.62768,2382.0,2381.8,0.42621981]
[1725558029241,0.41989,2381.9,2381.8,0.42621981]
[1725558029440,3.62768,2382.0,2381.8,0.42621981]
[1725558029950,3.2078,2382.0,2381.9,0.41989]
[1725558031249,3.2078,2382.3,2382.2,0.41984]
[1725558031450,0.3615,2382.5,2382.2,0.41984]
[1725558031451,0.4198,2382.5,2382.2,2.9]
[1725558031653,3.567,2382.7,2382.4,2.9]
[1725558031948,0.41977,2382.6,2382.5,0.79448]
[1725558032446,3.98676,2382.7,2382.5,0.79448]
[1725558032754,3.2078,2382.7,2382.6,3.31977]
[1725558033453,3.2078,2382.7,2382.6,2.9]
[1725558033754,3.2078,2382.7,2382.6,3.31977]
[1725558033954,0.3814,2382.9,2382.8,0.41973]
[1725558034160,0.7409,2383.3,2382.6,3.2746]
[1725558034448,0.41969,2383.1,2382.8,0.41972]
[1725558034651,0.4197,2383.0,2382.7,0.41974]
[1725558034950,3.2078,2383.1,2382.5,0.3747]
[1725558035153,0.4197,2383.0,2382.7,0.41974]
[1725558035346,0.41972,2382.9,2382.7,0.41974]
[1725558035953,0.41973,2382.8,2382.6,3.31976]
[1725558036152,0.80263,2382.8,2382.6,3.31976]
[1725558036464,0.80263,2382.8,2382.6,2.9]
[1725558036465,0.80264,2382.8,2382.6,2.9]
[1725558037850,0.80264,2382.8,2382.6,3.31976]
[1725558038051,0.80264,2382.8,2382.6,2.9]
[1725558038252,0.3829,2382.8,2382.6,2.9]
[1725558038759,0.80263,2382.8,2382.6,3.31976]
[1725558038957,0.3829,2382.8,2382.6,2.9]
[1725558039155,0.80264,2382.8,2382.6,3.31977]
[1725558040351,0.41978,2382.6,2382.4,3.3198]
[1725558040757,0.4198,2382.4,2382.3,0.3879]
[1725558040955,0.4198,2382.4,2381.8,3.21410981]
[1725558040956,1.04951,2382.4,2382.0,3.67576]
[1725558041155,0.41984,2382.2,2382.0,3.2559]
[1725558041459,0.41983,2382.3,2382.1,0.41985]
[1725558041761,3.2078,2382.5,2382.4,0.4198]
[1725558042063,3.2078,2382.5,2382.4,3.3198]
[1725558042467,3.62759,2382.5,2382.4,2.9]
[1725558042967,3.62759,2382.5,2382.4,4.0754]
[1725558043352,0.41979,2382.5,2382.4,4.0754]
[1725558043551,0.41979,2382.5,2382.4,0.7556]
[1725558044259,1.04951,2382.4,2382.1,3.31985]
[1725558044464,1.44201,2382.4,2382.1,3.70155]
[1725558044655,0.41983,2382.3,2382.1,3.70155]
[1725558045056,0.81232,2382.4,2382.3,0.41982]
[1725558045369,1.04939,2382.7,2382.3,2.9]
[1725558045558,1.44189,2382.7,2382.3,3.31981]
[1725558045867,0.41979,2382.5,2382.4,0.41979]
[1725558046165,0.41979,2382.5,2382.4,0.3729]
[1725558046352,1.04951,2382.4,2381.8,3.21410981]
[1725558046558,0.41989,2381.9,2381.8,0.00630981]
[1725558046960,0.41989,2381.9,2381.8,0.42621981]
[1725558047457,0.41989,2381.9,2381.8,0.00630981]
[1725558048367,0.41989,2382.0,2381.9,0.41989]
[1725558048663,0.41989,2381.9,2381.8,0.42620981]
[1725558049863,0.41989,2381.9,2381.8,0.00630981]
[1725558050063,8.87582,2381.9,2381.8,0.00630981]
[1725558050266,11.04635,2381.9,2381.8,0.00630981]
[1725558050473,0.41996,2381.5,2381.4,0.3828]
[1725558050675,0.41998,2381.4,2381.3,0.3608]
[1725558050963,0.41998,2381.4,2381.2,0.42]
[1725558050964,4.25767,2381.6,2381.2,0.42001]
[1725558051167,0.42,2381.3,2381.2,0.42001]
[1725558051370,4.25767,2381.6,2381.1,3.6436]
[1725558051371,3.2078,2381.6,2381.1,3.6436]
[1725558051553,0.41997,2381.5,2381.1,3.64989644]
[1725558051759,0.41997,2381.5,2381.3,0.41998]
[1725558051956,0.41997,2381.5,2381.4,0.41998]
[1725558053561,3.63402522,2381.6,2381.4,0.41998]
[1725558053758,0.41996,2381.5,2381.4,0.41998]
[1725558054668,0.41998,2381.4,2381.3,0.41999]
[1725558054869,0.42,2381.4,2381.2,0.42001]
[1725558055170,0.41999,2381.4,2381.2,0.42001]
[1725558055372,0.42,2381.3,2381.2,0.42001]
[1725558056168,0.42,2381.3,2381.1,1.16991644]
[1725558056564,1.42424,2381.5,2381.1,0.74989644]
[1725558056870,0.42001,2381.3,2381.1,1.16991644]
[1725558057378,0.42001,2381.2,2381.1,0.74989644]
[1725558057557,1.41177,2381.4,2381.1,1.16992644]
[1725558057757,0.42001,2381.3,2381.2,0.42001]
[1725558057962,0.41999,2381.4,2381.3,0.41999]
[1725558058566,0.41999,2381.4,2381.1,3.64989644]
[1725558058567,0.41997,2381.5,2381.4,0.41997]
[1725558059273,3.21406522,2381.6,2381.5,0.41996]
[1725558059878,3.21406522,2381.6,2381.5,3.31996]
[1725558060173,3.63400522,2381.6,2381.5,3.31996]
[1725558060367,3.21406522,2381.6,2381.3,2.9]
[1725558060574,0.41997,2381.5,2381.4,0.41997]
[1725558062171,3.21406522,2381.6,2381.5,0.41996]
[1725558062374,3.21406522,2381.6,2381.5,3.31996]
[1725558063374,3.21406522,2381.6,2381.5,7.51916]
[1725558063766,3.21406522,2381.6,2381.5,3.31996]
[1725558064572,4.26394522,2381.6,2381.1,6.85769644]
[1725558064767,0.41997,2381.5,2381.4,0.41998]
[1725558064966,0.41998,2381.4,2381.3,0.41998]
[1725558065770,0.42001,2381.3,2381.2,0.42]
[1725558065974,0.41999,2381.4,2381.3,0.41999]
[1725558066374,0.42,2381.3,2381.2,0.42]
[1725558066563,1.43492,2381.5,2381.2,0.42]
[1725558066769,0.41999,2381.4,2381.3,0.41999]
[1725558067476,0.41997,2381.5,2381.4,0.41997]
[1725558068077,0.41998,2381.4,2381.3,0.41998]
[1725558069072,3.21406522,2381.6,2381.5,0.41996]
[1725558069680,3.21406522,2381.6,2381.5,1.46987]
[1725558069974,3.21406522,2381.6,2381.5,10.38318]
[1725558071171,0.00626522,2381.6,2381.5,10.38318]
[1725558071575,0.00626522,2381.6,2381.5,5.13407]
[1725558071971,0.00626522,2381.6,2381.5,9.33327]
[1725558073082,0.00626522,2381.6,2381.5,1.18416]
[1725558073281,0.00626522,2381.6,2381.5,0.41996]
[1725558074572,0.42620522,2381.6,2381.5,0.41996]
[1725558074977,0.00626522,2381.6,2381.5,0.41996]
[1725558075679,0.00626522,2381.6,2381.5,1.46987]
[1725558075879,0.00626522,2381.6,2381.5,4.74877]
[1725558076385,0.00626522,2381.6,2381.5,0.79886]
[1725558076570,0.00626522,2381.6,2381.5,1.84877]
[1725558077168,0.00626522,2381.6,2381.5,0.79886]
[1725558077879,0.00626522,2381.6,2381.5,1.84877]
[1725558078074,0.00626522,2381.6,2381.5,5.79868]
[1725558078278,0.00626522,2381.6,2381.5,9.99788]
[1725558078675,0.00626522,2381.6,2381.5,5.79868]
[1725558083088,0.00626522,2381.6,2381.5,9.99788]
[1725558084083,0.211,2382.1,2382.0,1.46956]
[1725558084384,3.9859,2382.5,2382.4,0.4198]
[1725558084593,8.1835,2382.5,2382.4,0.4198]
[1725558085087,0.41983,2382.3,2382.2,0.41982]
[1725558085684,4.61743,2382.3,2382.2,0.41982]
[1725558086079,5.36613,2382.3,2382.2,0.41982]
[1725558090589,4.98063,2382.3,2382.2,0.41982]
[1725558091991,0.41987,2382.1,2382.0,0.41985]
[1725558093100,0.41987,2382.0,2381.9,0.78087]
[1725558093395,0.41987,2382.0,2381.9,0.41987]
[1725558093592,0.41987,2382.0,2381.8,0.4199]
[1725558093593,0.41991,2381.9,2381.8,0.4199]
[1725558094801,0.80281,2381.9,2381.8,0.4199]
[1725558095096,0.3829,2381.9,2381.8,0.4199]
[1725558095397,0.80279,2381.9,2381.8,0.4199]
[1725558095999,0.3829,2381.9,2381.8,0.4199]
[1725558097795,0.80279,2381.9,2381.8,0.4199]
[1725558098795,0.3895,2382.1,2381.9,0.41989]
[1725558099100,0.3895,2382.1,2382.0,0.41987]
[1725558099101,0.41987,2382.1,2382.0,0.41987]
[1725558099596,0.41987,2382.1,2381.9,0.41988]
[1725558099597,0.41989,2382.0,2381.9,0.41988]
[1725558099996,5.66798,2382.0,2381.9,0.41988]
[1725558101095,4.61829,2382.0,2381.9,0.41988]
[1725558102203,0.41987,2382.1,2382.0,0.41987]
[1725558104799,3.2078,2382.2,2382.1,0.41986]
[1725558104998,0.41981,2382.4,2382.3,0.4198]
[1725558105601,4.61741,2382.4,2382.3,0.4198]
[1725558106202,5.66692,2382.4,2382.3,0.4198]
[1725558107400,0.41986,2382.1,2382.0,0.41986]
[1725558107798,0.41986,2382.1,2381.8,1.77527]
[1725558107799,0.41989,2382.0,2381.9,0.41988]
[1725558108004,0.78769,2382.0,2381.9,0.41988]
[1725558108208,0.41989,2381.9,2381.8,0.3648]
[1725558108399,0.41991,2381.9,2381.7,4.146]
[1725558108604,0.41991,2381.9,2381.8,0.41989]
[1725558108803,1.41749,2382.0,2381.9,0.41989]
[1725558108804,0.78769,2382.0,2381.9,0.41989]
[1725558109805,4.61829,2382.0,2381.9,0.41989]
[1725558110005,0.41989,2382.0,2381.9,0.41989]
[1725558110706,0.41987,2382.1,2382.0,0.41986]
[1725558111007,3.2078,2382.2,2382.1,0.41986]
[1725558111203,3.2078,2382.2,2382.1,1.17076]
[1725558112697,3.62764,2382.2,2382.1,1.17076]
[1725558112902,3.2078,2382.2,2382.1,0.81076]
[1725558113205,3.62764,2382.2,2382.1,0.41986]
[1725558113410,0.41987,2382.1,2382.0,0.41986]
[1725558117811,0.41984,2382.2,2382.1,0.41984]
[1725558118211,3.2078,2382.3,2382.2,0.41984]
[1725558118712,3.2078,2382.3,2382.2,1.46944]
[1725558120011,3.2078,2382.3,2382.2,0.41984]
[1725558120313,3.62762,2382.3,2382.2,0.41984]
[1725558121211,0.41985,2382.2,2382.1,0.41984]
[1725558121412,3.62763,2382.3,2382.2,0.41984]
[1725558121711,3.62763,2382.3,2382.1,0.41984]
[1725558121712,0.41985,2382.2,2382.1,0.41984]
[1725558122108,0.41987,2382.1,2382.0,0.41986]
[1725558123914,0.41985,2382.2,2382.1,0.41985]
[1725558124126,3.2078,2382.3,2382.2,0.41984]
[1725558124812,3.62762,2382.3,2382.2,0.41984]
[1725558125722,3.2078,2382.3,2382.2,0.41984]
[1725558126012,3.62762,2382.3,2382.2,0.3875]
[1725558126812,3.62762,2382.3,2382.1,0.3719]
[1725558126813,0.41984,2382.2,2382.1,0.3719]
[1725558128419,0.41987,2382.0,2381.9,0.3875]
[1725558130120,0.41987,2382.0,2381.9,0.80739]
[1725558130510,4.25738,2382.3,2382.0,0.41987]
[1725558130712,0.41986,2382.1,2382.0,0.77787]
[1725558131317,0.41985,2382.2,2382.1,0.41986]
[1725558131520,0.41986,2382.1,2382.0,0.77786]
[1725558132421,4.25738,2382.3,2382.0,0.358]
[1725558132619,0.41986,2382.1,2382.0,0.77786]
[1725558134427,0.41986,2382.1,2382.0,0.358]
[1725558134821,0.41986,2382.1,2382.0,0.77787]
[1725558135724,3.2078,2382.3,2382.0,0.358]
[1725558135921,3.62762,2382.3,2382.2,0.41984]
[1725558136117,3.2078,2382.3,2382.2,0.41984]
[1725558136628,3.62762,2382.3,2382.2,0.41984]
[1725558138026,0.41984,2382.2,2382.1,0.78344]
[1725558138328,0.41986,2382.1,2382.0,0.77787]
[1725558138526,1.46951,2382.1,2382.0,0.358]
[1725558138929,0.41986,2382.1,2382.0,0.358]
[1725558139322,0.41991,2381.8,2381.6,0.391]
[1725558139527,0.41992,2381.8,2381.6,1.57663]
[1725558139730,0.41992,2381.8,2381.7,0.41993]
[1725558140322,0.4199,2381.9,2381.7,0.41993]
[1725558140518,0.4199,2381.9,2381.8,0.41991]
[1725558140721,0.4199,2381.9,2381.7,0.41992]
[1725558142826,0.4199,2381.9,2381.6,1.1567]
[1725558142827,3.62769,2382.0,2381.6,1.1567]
[1725558143032,3.62769,2382.0,2381.8,0.4199]
[1725558144035,0.41989,2381.9,2381.7,0.41992]
[1725558144831,0.41992,2381.8,2381.6,1.1567]
[1725558145030,0.41992,2381.8,2381.7,0.41993]
[1725558145226,0.4199,2381.9,2381.7,0.41993]
[1725558145642,0.41991,2381.8,2381.6,1.57663]
[1725558145834,0.41989,2381.9,2381.7,0.41991]
[1725558146137,0.41991,2381.8,2381.7,0.41991]
[1725558146533,0.4199,2381.9,2381.7,0.41991]
[1725558146739,0.41991,2381.8,2381.7,0.41991]
[1725558147841,0.41993,2381.7,2381.6,1.57664]
[1725558149038,0.41993,2381.7,2381.6,1.1567]
[1725558149343,4.67755,2381.7,2381.6,1.1567]
[1725558149642,4.67755,2381.7,2381.6,0.7657]
[1725558151142,3.62773,2381.7,2381.6,0.7657]
[1725558151340,3.62773,2381.7,2381.6,1.18564]
[1725558151341,0.41993,2381.7,2381.6,1.18564]
[1725558151547,0.41992,2381.8,2381.6,0.7657]
[1725558151746,0.41992,2381.8,2381.7,0.3765]
[1725558152239,0.41989,2381.9,2381.8,0.4199]
[1725558152645,3.2078,2382.1,2381.7,3.2765]
[1725558152947,0.41982,2382.3,2382.1,0.41985]
[1725558153141,0.41982,2382.3,2382.2,0.7445]
[1725558153342,0.41982,2382.3,2382.2,1.1339]
[1725558153546,0.41982,2382.3,2382.2,0.7574]
[1725558154240,0.41982,2382.3,2382.2,0.3894]
[1725558154437,0.41986,2382.1,2382.0,0.41987]
[1725558154641,0.41986,2382.1,2381.9,1.56368]
[1725558154847,0.41987,2382.0,2381.9,1.1438]
[1725558155362,0.41991,2381.8,2381.6,0.41993]
[1725558155648,0.41998,2381.5,2381.4,0.7501]
[1725558155847,0.41998,2381.5,2381.4,1.17008]
[1725558156054,0.41998,2381.5,2381.4,0.7501]
[1725558157750,0.41993,2381.7,2381.5,0.41995]
[1725558157949,0.41993,2381.7,2381.6,0.41994]
[1725558159547,0.41994,2381.6,2381.5,0.41995]
[1725558159745,0.41994,2381.7,2381.5,0.41995]
[1725558160147,0.41994,2381.6,2381.5,0.41995]
[1725558160648,0.41994,2381.7,2381.4,0.7501]
[1725558160855,0.41994,2381.7,2381.6,0.41994]
[1725558161354,0.41994,2381.7,2381.4,0.7501]
[1725558161562,3.2078,2381.8,2381.6,0.41993]
[1725558161745,3.62771,2381.8,2381.7,0.3921]
[1725558162257,3.62771,2381.8,2381.7,0.81203]
[1725558162451,3.62771,2381.8,2381.7,0.3921]
[1725558162647,3.62771,2381.8,2381.5,0.41995]
[1725558162648,0.41993,2381.7,2381.5,0.41995]
[1725558163251,0.41993,2381.7,2381.4,1.1202]
[1725558163451,3.2078,2381.8,2381.5,0.41996]
[1725558163452,0.41995,2381.6,2381.5,0.41996]
[1725558163655,0.41996,2381.5,2381.4,0.7501]
[1725558163961,0.41996,2381.5,2381.1,0.79642644]
[1725558163962,4.25771,2381.5,2381.1,0.79642644]
[1725558164158,4.67785,2381.2,2381.1,0.75369644]
[1725558164459,4.67785,2381.2,2381.1,0.00629644]
[1725558164754,8.87785,2381.2,2381.1,0.00629644]
[1725558165758,9.26855,2381.2,2381.1,0.00629644]
[1725558169159,3.62781,2381.2,2381.1,0.00629644]
[1725558169355,0.42001,2381.2,2381.1,0.00629644]
[1725558169861,3.2078,2381.5,2381.1,7.47249644]
[1725558170057,3.62777,2381.5,2381.3,0.41999]
[1725558170354,3.62777,2381.5,2381.3,0.42]
[1725558170552,0.41998,2381.4,2381.3,0.42]
[1725558171351,0.41998,2381.4,2381.2,0.3689]
[1725558171558,0.41998,2381.4,2381.2,0.78891]
[1725558174061,3.2078,2381.5,2381.4,0.41998]
[1725558178362,3.62776,2381.5,2381.4,0.41998]
[1725558178553,0.42,2381.3,2381.2,0.3689]
[1725558180366,0.42001,2381.2,2381.1,0.79251644]
[1725558180560,1.47005,2381.2,2381.1,0.00629644]
[1725558180764,4.67785,2381.2,2381.1,0.00629644]
[1725558180958,8.87785,2381.2,2381.1,0.00629644]
[1725558181963,7.82781,2381.2,2381.1,0.42632644]
[1725558182165,3.2078,2381.2,2381.1,0.42632644]
[1725558184167,3.62781,2381.2,2381.1,0.42632644]
[1725558184367,3.2078,2381.2,2381.1,0.42632644]
[1725558187869,3.62781,2381.2,2381.1,0.42632644]
[1725558188172,3.2078,2381.2,2381.1,0.42632644]
[1725558189071,3.62781,2381.2,2381.1,0.42632644]
[1725558190370,3.2078,2381.2,2381.1,0.42632644]
[1725558190875,8.87785,2381.2,2381.1,0.00629644]
[1725558191071,8.87785,2381.2,2380.6,4.5159]
[1725558191072,0.42007,2380.9,2380.6,4.5159]
[1725558191374,0.42008,2380.8,2380.7,1.20449]
[1725558191871,3.2078,2380.9,2380.8,0.42008]
[1725558192070,3.62787,2380.9,2380.8,0.42008]
[1725558192375,3.2078,2380.9,2380.8,0.42008]
[1725558192572,3.62787,2380.9,2380.8,0.42008]
[1725558193171,3.2078,2380.9,2380.8,0.42008]
[1725558193378,3.2078,2380.9,2380.8,1.4703]
[1725558193673,0.00629644,2381.1,2381.0,0.42005]
[1725558193976,0.00629644,2381.1,2381.0,0.78715]
[1725558195672,0.00629644,2381.1,2380.7,0.7844]
[1725558195863,0.00629644,2381.1,2380.8,0.42007]
[1725558196067,0.00629644,2381.1,2381.0,0.42005]
[1725558197174,0.00629644,2381.1,2380.9,0.42005]
[1725558197477,0.42632644,2381.1,2380.9,0.42005]
[1725558197776,0.42006,2381.0,2380.8,0.42007]
[1725558197973,3.2078,2381.0,2380.7,1.1515]
[1725558198180,4.25794,2381.0,2380.7,1.1515]
[1725558198480,0.42008,2380.9,2380.7,1.5716]
[1725558198879,0.42008,2380.8,2380.7,1.1515]
[1725558199177,4.25794,2381.0,2380.7,1.1515]
[1725558199475,3.62786,2381.0,2380.8,0.42008]
[1725558199683,3.2078,2381.0,2380.8,0.3791]
[1725558199881,3.2078,2381.0,2380.9,0.42007]
[1725558200384,0.00629644,2381.1,2381.0,0.42005]
[1725558202773,0.00629644,2381.1,2381.0,4.62005]
[1725558203484,0.00629644,2381.1,2381.0,11.67018]
[1725558204587,0.098,2381.5,2381.4,0.41998]
[1725558204886,3.2078,2381.7,2381.5,0.41994]
[1725558205086,3.2078,2381.7,2381.6,0.7611]
[1725558206485,3.62773,2381.7,2381.6,0.7611]
[1725558207385,3.2078,2381.7,2381.6,0.7611]
[1725558208986,3.62773,2381.7,2381.6,0.7611]
[1725558209191,7.4062,2381.7,2380.9,6.1078]
[1725558209493,0.41995,2381.6,2381.3,0.41999]
[1725558209787,3.9534,2381.7,2381.4,0.41997]
[1725558209986,0.41995,2381.6,2381.3,0.41998]
[1725558210492,3.2078,2381.4,2381.2,0.7741]
[1725558210683,3.62779,2381.4,2381.2,0.7741]
[1725558211381,3.62779,2381.4,2381.0,0.42004]
[1725558211382,0.42,2381.3,2381.0,0.42004]
[1725558211585,0.42,2381.3,2381.1,0.42003]
[1725558211886,0.42002,2381.2,2381.0,0.42005]
[1725558212091,0.79882,2381.2,2381.0,0.42005]
[1725558212389,0.79882,2381.2,2380.9,1.16706]
[1725558212390,0.42004,2381.1,2380.9,1.16706]
[1725558212887,0.79883,2381.2,2380.9,0.747]
[1725558213190,0.42004,2381.1,2380.9,1.16706]
[1725558213390,0.42002,2381.2,2381.0,0.42005]
[1725558213589,0.3891,2381.3,2381.1,0.42002]
[1725558213790,0.8091,2381.3,2381.1,0.42002]
[1725558213989,0.8091,2381.3,2381.1,0.42003]
[1725558214691,0.42002,2381.2,2381.0,0.42004]
[1725558215084,0.42002,2381.2,2380.9,0.747]
[1725558215390,0.42003,2381.1,2380.9,0.747]
[1725558215591,0.42003,2381.1,2380.9,1.16706]
[1725558215895,0.42003,2381.2,2381.0,0.42005]
[1725558216288,1.80721,2381.3,2380.9,0.747]
[1725558216592,0.42001,2381.2,2381.0,0.42004]
[1725558217594,0.42003,2381.1,2381.0,0.42004]
[1725558217887,0.42003,2381.2,2381.0,0.42004]
[1725558218785,0.42003,2381.1,2381.0,0.42004]
[1725558219492,0.42008,2380.9,2380.7,0.4201]
[1725558219692,0.363,2381.0,2380.6,0.73879644]
[1725558219893,4.37036,2380.7,2380.6,0.00629644]
[1725558220287,8.57116,2380.7,2380.6,0.00629644]
[1725558220590,14.57116,2380.7,2380.6,0.00629644]
[1725558220793,0.42017,2380.4,2380.1,4.9353]
[1725558220987,3.62797,2380.4,2380.1,0.7893]
[1725558221291,3.2078,2380.4,2380.1,0.7893]
[1725558221487,0.42018,2380.3,2380.1,0.7893]
[1725558221798,3.63426644,2380.4,2380.1,0.7893]
[1725558222096,3.21409644,2380.4,2380.3,0.42017]
[1725558223292,0.00629644,2380.4,2380.2,0.42019]
[1725558224900,0.42018,2380.3,2380.1,0.3691]
[1725558225396,0.42019,2380.2,2380.1,0.3691]
[1725558226598,0.42021,2380.1,2380.0,0.36969644]
[1725558226900,3.62801,2380.1,2380.0,0.00629644]
[1725558228086,3.2078,2380.1,2380.0,0.00629644]
[1725558228500,3.62801,2380.1,2380.0,0.00629644]
[1725558228892,0.42021,2380.1,2380.0,0.00629644]
[1725558229394,3.57729644,2380.4,2380.0,0.00629644]
[1725558229589,0.4202,2380.2,2380.0,0.42651644]
[1725558230602,0.42019,2380.2,2380.0,0.42651644]
[1725558230800,0.42019,2380.2,2380.1,0.3928]
[1725558231206,0.42018,2380.3,2380.1,0.813]
[1725558231499,0.42019,2380.2,2380.1,0.3928]
[1725558231703,0.42019,2380.3,2380.1,0.81301]
[1725558232405,0.42019,2380.2,2380.1,0.81301]
[1725558232607,0.42019,2380.2,2380.1,0.3928]
[1725558233303,0.42019,2380.2,2380.1,0.81301]
[1725558233701,0.42019,2380.2,2380.1,0.3928]
[1725558234295,3.57729644,2380.4,2380.1,0.813]
[1725558234494,0.00629644,2380.4,2380.3,4.37061]
[1725558234691,0.098,2381.0,2380.4,1.0504]
[1725558234901,0.42009,2380.8,2380.5,0.3662]
[1725558235099,0.42011,2380.7,2380.5,0.3662]
[1725558235597,3.2078,2380.8,2380.5,0.3662]
[1725558235902,3.2078,2380.8,2380.7,0.4201]
[1725558236097,3.2078,2380.8,2380.5,0.3662]
[1725558236504,3.2078,2380.8,2380.7,0.4201]
[1725558236901,3.2078,2380.8,2380.6,0.42011]
[1725558237197,3.2078,2380.8,2380.5,0.78633]
[1725558237198,3.62789,2380.8,2380.5,0.78633]
[1725558237406,3.2078,2380.8,2380.5,0.78633]
[1725558237595,3.2078,2380.8,2380.5,0.3662]
[1725558237798,3.6279,2380.8,2380.5,0.3662]
[1725558238003,3.2078,2380.8,2380.5,0.78633]
[1725558238306,3.6279,2380.8,2380.5,0.3662]
[1725558238605,3.2078,2380.8,2380.6,0.42011]
[1725558238903,3.62789,2380.8,2380.5,0.78633]
[1725558239204,0.4201,2380.7,2380.5,0.3662]
[1725558240293,0.42011,2380.7,2380.5,0.3662]
[1725558240494,7.1008,2380.6,2380.0,0.00629644]
[1725558240703,0.42021,2380.1,2380.0,0.00629644]
[1725558241105,0.4202,2380.2,2380.0,0.00629644]
[1725558242206,0.4202,2380.2,2380.0,0.42651644]
[1725558242405,0.42019,2380.3,2380.0,0.42651644]
[1725558242596,4.00476,2380.4,2380.0,0.00629644]